{"text_format":"3","workbook":"xlsx","n_sheets":4,"sheets":["Budskjema","Diagramdata","Kostnadsfordeling","Sammendrag av anbudskostnader"],"not_rendered":{"charts":1,"images":2,"defined_names":11},"read":"whole","date_system":"1900"}

{"sheet":"Budskjema","index":0,"n_rows":21,"n_cols":6,"rows_kept":21,"merged":[[0,1,0,4],[1,1,1,2],[7,1,8,1],[7,2,8,2],[10,1,10,5],[12,1,12,5],[14,1,14,5],[15,1,15,2],[15,4,15,5],[16,1,16,2],[16,4,16,5],[18,1,18,5],[19,1,19,2],[19,4,19,5],[20,1,20,2],[20,4,20,5]]}
[null,"Anbudsskjema for byggeri"]
[null,"Eierinformasjon",null,null,"Entreprenørinformasjon"]
[null,"Navn","Angi eierens navn i denne cellen.",null,"Firma","Angi entreprenørens firmanavn i denne cellen"]
[null,"Adresse","Angi eierens adresse i denne cellen",null,"Navn","Angi entreprenørens navn i denne cellen"]
[null,"Postnummer og poststed","Angi eierens by, fylke og postnummer i denne cellen",null,"Adresse","Angi entreprenørens adresse i denne cellen"]
[null,"Telefon","Angi eierens telefonnummer i denne cellen",null,"Postnummer og poststed","Angi entreprenørens poststed, delstat og postnummer i denne cellen"]
[null,"E-postadresse","Angi eierens e-postadresse i denne cellen",null,"Telefon","Angi entreprenørens telefonnummer i denne cellen"]
[null,"Prosjektnavn","Angi prosjektnavn i denne cellen.",null,"E-postadresse","Angi entreprenørens e-postadresse i denne cellen "]
[{"$nulls":4},"Fullføringsdato","Angi fullføringsdato i denne cellen"]
[null,"Arbeidsomfang"]
[null,"Arbeidsomfang for prosjektet skrives inn her. Skriv inn alle spesifikasjonene du ønsker. \n\nEksempeltekst: Dette er et fingert prosjekt for å bygge en stor trapp. Vi bruker bare 2 : 4 og 2 : 8-tømmer, samt bjelkebeslag for å konstruere rammen. Trappen skal kuttes fra 2 : 4-tømmer. Det skal ikke brukes mindre enn to tommers skruer.  Spikere skal ikke være mindre enn tre tommers. Konstruksjonsvekten skal holde minst 225 kg per trinn. Trinnene skal ha samme helningsvinkel som huset. Et stigbrett skal festes til huset. Entreprenør tar seg av oppryddingen."]
[null,"Ikke inkludert."]
[null,"Prosjektdetaljer som ikke er inkludert, vises her. Skriv inn alt som ikke er inkludert i dette anbudet. \n\nEksempeltekst: Rekkverk skal ikke monteres. Grunnen skal klargjøres av eier. Trappen skal males av eier."]
[null,"Firmaforslag"]
[null,"Firmaforslag skrives inn her. Skriv inn en oversikt over forslaget, inkludert hvem som foreslår arbeidet, forventet fullføringsdato og forslagets størrelse/beløp.\n\nEksempeltekst: Vi, firmanavn, foreslår det ovennevnte arbeidsomfanget, som skal fullføres innen fullføringsdato for et samlet beløp på i alt."]
[]
[null,"Innsendt av (firmarepresentant)",null,null,"Dato"]
[null,"Eiergodkjenning"]
[null,"Eiergodkjenning skrives inn her. Skriv inn navnet på eieren i en bekreftelseserklæring som inkluderer fullføringsdatoen og totalbeløpet angitt i firmaforslaget. \n\nEksempeltekst: Jeg, eiernavn, godtar ovennevnte arbeidsomfang, foreslått fullført innen fullføringsdatoen til en samlet kostnad på."]
[]
[null,"Sendt inn av (boligeier eller autorisert representant)",null,null,"Dato"]

{"sheet":"Diagramdata","index":1,"n_rows":7,"n_cols":3,"rows_kept":7,"hidden":true}
[]
[null,null,"Totalt"]
[null,{"$f":"INDEX(Budelementer[#Data],MATCH(1,Budelementer[Kostnader rangert],0),2)","v":"Arbeidstakeravgift"},{"$f":"INDEX(Budelementer[#Data],MATCH(1,Budelementer[Kostnader rangert],0),4)","v":200}]
[null,{"$f":"INDEX(Budelementer[#Data],MATCH(2,Budelementer[Kostnader rangert],0),2)","v":"10 stk. 2 : 4-tømmer"},{"$f":"INDEX(Budelementer[#Data],MATCH(2,Budelementer[Kostnader rangert],0),4)","v":99.39999999999999}]
[null,{"$f":"INDEX(Budelementer[#Data],MATCH(3,Budelementer[Kostnader rangert],0),2)","v":"Bjelkebeslag"},{"$f":"INDEX(Budelementer[#Data],MATCH(3,Budelementer[Kostnader rangert],0),4)","v":74.7}]
[null,{"$f":"INDEX(Budelementer[#Data],MATCH(4,Budelementer[Kostnader rangert],0),2)","v":"10 stk. 2 : 8-tømmer"},{"$f":"INDEX(Budelementer[#Data],MATCH(4,Budelementer[Kostnader rangert],0),4)","v":33.75}]
[null,{"$f":"INDEX(Budelementer[#Data],MATCH(5,Budelementer[Kostnader rangert],0),2)","v":"Par lærhansker"},{"$f":"INDEX(Budelementer[#Data],MATCH(5,Budelementer[Kostnader rangert],0),4)","v":15.5}]

{"sheet":"Kostnadsfordeling","index":2,"n_rows":14,"n_cols":6,"rows_kept":14,"merged":[[0,1,0,4],[1,1,1,4]]}
[null,"Kostnadsfordeling",{"$nulls":3}," "]
[null,"Liste over materiell og kostnader"]
[null,"Ant.","Beskrivelse","Kostnader","Totalt","Kostnader rangert"]
[null,5,"10 stk. 2 : 8-tømmer",{"v":6.75,"d":"kr 6.75"},{"$f":"IFERROR(Budelementer[[#This Row],[Kostnader]]*Budelementer[[#This Row],[Ant.]], \"\")","v":{"v":33.75,"d":"kr 33.75"}},{"$f":"_xlfn.RANK.EQ(Budelementer[[#This Row],[Totalt]],Budelementer[Totalt])","v":4}]
[null,20,"10 stk. 2 : 4-tømmer",{"v":4.97,"d":"kr 4.97"},{"$f":"IFERROR(Budelementer[[#This Row],[Kostnader]]*Budelementer[[#This Row],[Ant.]], \"\")","v":{"v":99.39999999999999,"d":"kr 99.40"}},{"$f":"_xlfn.RANK.EQ(Budelementer[[#This Row],[Totalt]],Budelementer[Totalt])","v":2}]
[null,30,"Bjelkebeslag",{"v":2.49,"d":"kr 2.49"},{"$f":"IFERROR(Budelementer[[#This Row],[Kostnader]]*Budelementer[[#This Row],[Ant.]], \"\")","v":{"v":74.7,"d":"kr 74.70"}},{"$f":"_xlfn.RANK.EQ(Budelementer[[#This Row],[Totalt]],Budelementer[Totalt])","v":3}]
[null,2,"Eske med skruer, 2 tommers",{"v":6.67,"d":"kr 6.67"},{"$f":"IFERROR(Budelementer[[#This Row],[Kostnader]]*Budelementer[[#This Row],[Ant.]], \"\")","v":{"v":13.34,"d":"kr 13.34"}},{"$f":"_xlfn.RANK.EQ(Budelementer[[#This Row],[Totalt]],Budelementer[Totalt])","v":6}]
[null,2,"Eske med spikere, 3 tommers",{"v":3.25,"d":"kr 3.25"},{"$f":"IFERROR(Budelementer[[#This Row],[Kostnader]]*Budelementer[[#This Row],[Ant.]], \"\")","v":{"v":6.5,"d":"kr 6.50"}},{"$f":"_xlfn.RANK.EQ(Budelementer[[#This Row],[Totalt]],Budelementer[Totalt])","v":7}]
[null,2,"Par lærhansker",{"v":7.75,"d":"kr 7.75"},{"$f":"IFERROR(Budelementer[[#This Row],[Kostnader]]*Budelementer[[#This Row],[Ant.]], \"\")","v":{"v":15.5,"d":"kr 15.50"}},{"$f":"_xlfn.RANK.EQ(Budelementer[[#This Row],[Totalt]],Budelementer[Totalt])","v":5}]
[null,2,"Arbeidstakeravgift",{"v":100,"d":"kr 100.00"},{"$f":"IFERROR(Budelementer[[#This Row],[Kostnader]]*Budelementer[[#This Row],[Ant.]], \"\")","v":{"v":200,"d":"kr 200.00"}},{"$f":"_xlfn.RANK.EQ(Budelementer[[#This Row],[Totalt]],Budelementer[Totalt])","v":1}]
[4,null,null,"Totalsum",{"$f":"SUBTOTAL(109,Budelementer[Totalt])","v":{"v":443.18999999999994,"d":"kr 443.19"}}]
[5,null,null,"Avgiftssats",{"v":0.075,"d":"7.50%"}]
[{"$nulls":3},"Avgift",{"$f":"IFERROR(Skattesats*Budelementer[[#Totals],[Totalt]], \"\")","v":{"v":33.23924999999999,"d":"kr 33.24"}}]
[{"$nulls":3},"Totalsum",{"$f":"IFERROR(Avgift+Budelementer[[#Totals],[Totalt]], \"\")","v":{"v":476.4292499999999,"d":"kr 476.43"}}]

{"sheet":"Sammendrag av anbudskostnader","index":3,"n_rows":3,"n_cols":4,"rows_kept":3}
[null,"Sammendrag av anbudskostnader"]
[null,"Oversikt over materiell og kostnader",null,"Notater"]
[null,"Sektordiagram som viser de fem største kostnadene per materiale. Data er basert på tabellen Anbudselementer i Kostnadsfordeling-regnearket.",null,"Angi notater i denne cellen."]